[Event "Titled Tuesday Blitz March 01 Early 2022"]
[White "Lazavik, Denis"]
[Black "Warmerdam, Max"]
[WhiteFideId "13515110"]
[BlackFideId "1048104"]
[WhiteElo "2436"]
[BlackElo "2537"]
[Result "1/2-1/2"]
[Round "09"]
[TimeControl "180+1"]
[Date "2022.03.01"]
[WhiteClock "0:00:06"]
[BlackClock "0:00:22"]

1. d4 {[%clk 0:03:00]}  d5 {[%clk 0:03:00]} 2. c4 {[%clk 0:03:01]}  e6 {[%clk 0:03:00]} 3. Nf3 {[%clk 0:03:01]}  a6 {[%clk 0:03:00]} 4. cxd5 {[%clk 0:03:01]}  exd5 {[%clk 0:03:01]} 5. Nc3 {[%clk 0:03:02]}  c6 {[%clk 0:03:02]} 6. Qc2 {[%clk 0:03:02]}  Nf6 {[%clk 0:03:01]} 7. Bg5 {[%clk 0:03:01]}  Be6 {[%clk 0:03:02]} 8. e3 {[%clk 0:03:02]}  h6 {[%clk 0:03:03]} 9. Bf4 {[%clk 0:03:00]}  c5 {[%clk 0:03:03]} 10. Bd3 {[%clk 0:02:52]}  Nc6 {[%clk 0:03:01]} 11. dxc5 {[%clk 0:02:44]}  Bxc5 {[%clk 0:02:59]} 12. O-O {[%clk 0:02:39]}  O-O {[%clk 0:02:59]} 13. Ne2 {[%clk 0:02:35]}  Qe7 {[%clk 0:02:56]} 14. Rac1 {[%clk 0:02:31]}  Ba7 {[%clk 0:02:43]} 15. Ned4 {[%clk 0:02:30]}  Rac8 {[%clk 0:02:40]} 16. Qa4 {[%clk 0:02:24]}  Bd7 {[%clk 0:02:31]} 17. Nxc6 {[%clk 0:02:03]}  Bxc6 {[%clk 0:02:32]} 18. Qa5 {[%clk 0:02:03]}  Ne4 {[%clk 0:02:21]} 19. Nd4 {[%clk 0:01:55]}  Bxd4 {[%clk 0:01:55]} 20. exd4 {[%clk 0:01:56]}  Rfe8 {[%clk 0:01:49]} 21. f3 {[%clk 0:01:55]}  Ng5 {[%clk 0:01:25]} 22. Rfe1 {[%clk 0:01:53]}  Ne6 {[%clk 0:01:19]} 23. Be5 {[%clk 0:01:52]}  Qd7 {[%clk 0:01:17]} 24. Qb6 {[%clk 0:01:44]}  Bb5 {[%clk 0:01:14]} 25. Bf5 {[%clk 0:01:29]}  Rxc1 {[%clk 0:01:08]} 26. Rxc1 {[%clk 0:01:28]}  Rc8 {[%clk 0:01:09]} 27. Rc5 {[%clk 0:01:15]}  Bc6 {[%clk 0:00:37]} 28. Rc3 {[%clk 0:01:01]}  Re8 {[%clk 0:00:34]} 29. Qb4 {[%clk 0:00:50]}  Qd8 {[%clk 0:00:34]} 30. Bxe6 {[%clk 0:00:07]}  Rxe6 {[%clk 0:00:33]} 31. Re3 {[%clk 0:00:08]}  Qg5 {[%clk 0:00:32]} 32. Qe1 {[%clk 0:00:07]}  Qf5 {[%clk 0:00:28]} 33. h3 {[%clk 0:00:03]}  f6 {[%clk 0:00:25]} 34. Bf4 {[%clk 0:00:03]}  Rxe3 {[%clk 0:00:24]} 35. Bxe3 {[%clk 0:00:04]}  Qd3 {[%clk 0:00:23]} 36. a3 {[%clk 0:00:04]}  Kf7 {[%clk 0:00:23]} 37. Qd2 {[%clk 0:00:04]}  Qxd2 {[%clk 0:00:20]} 38. Bxd2 {[%clk 0:00:05]}  h5 {[%clk 0:00:21]} 39. h4 {[%clk 0:00:05]}  Bb5 {[%clk 0:00:22]} 40. Kf2 {[%clk 0:00:06]} 1/2-1/2


[Site "https://www.chess.com"]

[Event "Titled Tuesday Blitz March 01 Early 2022"]
[White "Manelyuk, Daniil"]
[Black "Thomas, Anysia"]
[WhiteFideId "44173920"]
[BlackFideId "670472"]
[WhiteElo "2222"]
[BlackElo "2002"]
[Result "1-0"]
[Round "09"]
[TimeControl "180+1"]
[Date "2022.03.01"]
[WhiteClock "0:00:37"]
[BlackClock "0:00:08"]

1. e4 {[%clk 0:03:00]}  c5 {[%clk 0:02:52]} 2. Nf3 {[%clk 0:03:00]}  g6 {[%clk 0:02:45]} 3. d4 {[%clk 0:02:59]}  cxd4 {[%clk 0:02:46]} 4. Nxd4 {[%clk 0:02:59]}  Nc6 {[%clk 0:02:41]} 5. c4 {[%clk 0:02:53]}  Nf6 {[%clk 0:02:40]} 6. Nc3 {[%clk 0:02:52]}  d6 {[%clk 0:02:39]} 7. Be2 {[%clk 0:02:51]}  Nxd4 {[%clk 0:02:40]} 8. Qxd4 {[%clk 0:02:51]}  Bg7 {[%clk 0:02:40]} 9. Be3 {[%clk 0:02:46]}  O-O {[%clk 0:02:40]} 10. Qd2 {[%clk 0:02:45]}  Be6 {[%clk 0:02:40]} 11. f3 {[%clk 0:02:34]}  Qa5 {[%clk 0:02:40]} 12. O-O {[%clk 0:02:17]}  Rfc8 {[%clk 0:02:35]} 13. b3 {[%clk 0:01:55]}  a6 {[%clk 0:02:34]} 14. Rab1 {[%clk 0:01:45]}  b5 {[%clk 0:02:20]} 15. b4 {[%clk 0:01:28]}  Qd8 {[%clk 0:02:13]} 16. cxb5 {[%clk 0:01:15]}  axb5 {[%clk 0:02:08]} 17. Bxb5 {[%clk 0:01:05]}  Nd7 {[%clk 0:01:12]} 18. Nd5 {[%clk 0:01:00]}  Bxd5 {[%clk 0:00:57]} 19. exd5 {[%clk 0:00:56]}  Ne5 {[%clk 0:00:55]} 20. a4 {[%clk 0:00:53]}  Nc4 {[%clk 0:00:49]} 21. Bxc4 {[%clk 0:00:52]}  Rxc4 {[%clk 0:00:49]} 22. a5 {[%clk 0:00:52]}  Qd7 {[%clk 0:00:32]} 23. b5 {[%clk 0:00:48]}  Bc3 {[%clk 0:00:26]} 24. Qd3 {[%clk 0:00:46]}  Rcc8 {[%clk 0:00:18]} 25. a6 {[%clk 0:00:43]}  Ba5 {[%clk 0:00:13]} 26. b6 {[%clk 0:00:40]}  Rab8 {[%clk 0:00:12]} 27. b7 {[%clk 0:00:39]}  Rc3 {[%clk 0:00:10]} 28. a7 {[%clk 0:00:37]}  Rxd3 {[%clk 0:00:08]} 29. axb8=Q+ {[%clk 0:00:37]}  Kg7 {[%clk 0:00:08]} 30. Qc8 {[%clk 0:00:37]} 1-0


[Site "https://www.chess.com"]

[Event "Titled Tuesday Blitz March 01 Early 2022"]
[White "Mikhalsky, Vladimir"]
[Black "Odegov, Artem"]
[WhiteFideId "14144352"]
[BlackFideId "34183644"]
[WhiteElo "2248"]
[BlackElo "2277"]
[Result "0-1"]
[Round "09"]
[TimeControl "180+1"]
[Date "2022.03.01"]
[WhiteClock "0:00:01"]
[BlackClock "0:00:06"]

1. c4 {[%clk 0:03:00]}  Nf6 {[%clk 0:02:53]} 2. Nc3 {[%clk 0:03:00]}  c5 {[%clk 0:02:50]} 3. Nf3 {[%clk 0:02:59]}  Nc6 {[%clk 0:02:50]} 4. d4 {[%clk 0:02:59]}  cxd4 {[%clk 0:02:51]} 5. Nxd4 {[%clk 0:02:59]}  g6 {[%clk 0:02:52]} 6. e4 {[%clk 0:02:58]}  Bg7 {[%clk 0:02:52]} 7. Nc2 {[%clk 0:02:58]}  O-O {[%clk 0:02:51]} 8. Be2 {[%clk 0:02:57]}  d6 {[%clk 0:02:52]} 9. Be3 {[%clk 0:02:57]}  Be6 {[%clk 0:02:52]} 10. O-O {[%clk 0:02:38]}  Rc8 {[%clk 0:02:51]} 11. b3 {[%clk 0:02:30]}  Ng4 {[%clk 0:02:39]} 12. Bxg4 {[%clk 0:02:28]}  Bxc3 {[%clk 0:02:38]} 13. Bxe6 {[%clk 0:02:22]}  fxe6 {[%clk 0:02:39]} 14. Nd4 {[%clk 0:02:09]}  Nxd4 {[%clk 0:02:31]} 15. Bxd4 {[%clk 0:02:08]}  Bxa1 {[%clk 0:02:32]} 16. Bxa1 {[%clk 0:02:03]}  b5 {[%clk 0:02:16]} 17. Qd4 {[%clk 0:01:58]}  e5 {[%clk 0:02:15]} 18. Qd5+ {[%clk 0:01:58]}  Kg7 {[%clk 0:02:15]} 19. Qxb5 {[%clk 0:01:57]}  Qb6 {[%clk 0:02:15]} 20. Qd7 {[%clk 0:01:53]}  Rc7 {[%clk 0:02:10]} 21. Qe6 {[%clk 0:01:52]}  Rf6 {[%clk 0:02:10]} 22. Qd5 {[%clk 0:01:49]}  e6 {[%clk 0:02:09]} 23. Qd2 {[%clk 0:01:48]}  Rcf7 {[%clk 0:02:09]} 24. g3 {[%clk 0:01:41]}  h5 {[%clk 0:02:07]} 25. Kg2 {[%clk 0:01:39]}  Qc6 {[%clk 0:02:07]} 26. f3 {[%clk 0:01:37]}  h4 {[%clk 0:02:06]} 27. Qe3 {[%clk 0:01:25]}  Qe8 {[%clk 0:02:01]} 28. Bc3 {[%clk 0:01:24]}  Qh8 {[%clk 0:02:01]} 29. Bd2 {[%clk 0:01:13]}  h3+ {[%clk 0:02:00]} 30. Kg1 {[%clk 0:01:13]}  Qf8 {[%clk 0:01:58]} 31. f4 {[%clk 0:01:12]}  Kg8 {[%clk 0:01:51]} 32. Rf3 {[%clk 0:01:09]}  g5 {[%clk 0:01:45]} 33. f5 {[%clk 0:01:08]}  exf5 {[%clk 0:01:45]} 34. Qxg5+ {[%clk 0:00:59]}  Rg7 {[%clk 0:01:38]} 35. Qh4 {[%clk 0:00:54]}  f4 {[%clk 0:01:31]} 36. Qxh3 {[%clk 0:00:49]}  fxg3 {[%clk 0:01:28]} 37. Rxf6 {[%clk 0:00:42]}  gxh2+ {[%clk 0:01:27]} 38. Kxh2 {[%clk 0:00:41]}  Qxf6 {[%clk 0:01:28]} 39. Qc8+ {[%clk 0:00:39]}  Qf8 {[%clk 0:01:26]} 40. Qe6+ {[%clk 0:00:35]}  Kh7 {[%clk 0:01:16]} 41. Qh3+ {[%clk 0:00:35]}  Kg6 {[%clk 0:01:11]} 42. Qh6+ {[%clk 0:00:31]}  Kf7 {[%clk 0:01:10]} 43. Bg5 {[%clk 0:00:29]}  Rg6 {[%clk 0:00:53]} 44. Qh5 {[%clk 0:00:29]}  Qg7 {[%clk 0:00:46]} 45. Bh4 {[%clk 0:00:29]}  Kg8 {[%clk 0:00:45]} 46. Qf3 {[%clk 0:00:25]}  Rg4 {[%clk 0:00:39]} 47. Bg3 {[%clk 0:00:24]}  Rg6 {[%clk 0:00:37]} 48. Kg2 {[%clk 0:00:24]}  Rf6 {[%clk 0:00:37]} 49. Qe3 {[%clk 0:00:23]}  Qg4 {[%clk 0:00:36]} 50. b4 {[%clk 0:00:19]}  Rf4 {[%clk 0:00:32]} 51. c5 {[%clk 0:00:16]}  Rxe4 {[%clk 0:00:26]} 52. Qb3+ {[%clk 0:00:15]}  Kh8 {[%clk 0:00:27]} 53. cxd6 {[%clk 0:00:13]}  Re2+ {[%clk 0:00:26]} 54. Kf1 {[%clk 0:00:13]}  Rd2 {[%clk 0:00:23]} 55. Bxe5+ {[%clk 0:00:13]}  Kh7 {[%clk 0:00:22]} 56. Qf7+ {[%clk 0:00:13]}  Kh6 {[%clk 0:00:21]} 57. Qf8+ {[%clk 0:00:12]}  Kg5 {[%clk 0:00:16]} 58. Qg7+ {[%clk 0:00:11]}  Kf5 {[%clk 0:00:16]} 59. Qxg4+ {[%clk 0:00:10]}  Kxg4 {[%clk 0:00:17]} 60. b5 {[%clk 0:00:09]}  Kf5 {[%clk 0:00:16]} 61. Bg3 {[%clk 0:00:09]}  Ke6 {[%clk 0:00:16]} 62. a4 {[%clk 0:00:06]}  Ra2 {[%clk 0:00:16]} 63. Bf2 {[%clk 0:00:05]}  Rxa4 {[%clk 0:00:15]} 64. b6 {[%clk 0:00:05]}  a6 {[%clk 0:00:15]} 65. Bc5 {[%clk 0:00:04]}  Rc4 {[%clk 0:00:09]} 66. b7 {[%clk 0:00:04]}  Rc1+ {[%clk 0:00:09]} 67. Ke2 {[%clk 0:00:02]}  Rb1 {[%clk 0:00:10]} 68. Kd3 {[%clk 0:00:01]}  Rxb7 {[%clk 0:00:10]} 69. Kc4 {[%clk 0:00:02]}  Rb1 {[%clk 0:00:10]} 70. Ba3 {[%clk 0:00:01]}  Rh1 {[%clk 0:00:09]} 71. Kc5 {[%clk 0:00:01]}  Rb1 {[%clk 0:00:07]} 72. Kc4 {[%clk 0:00:01]}  Kd7 {[%clk 0:00:06]} 0-1


[Site "https://www.chess.com"]

[Event "Titled Tuesday Blitz March 01 Early 2022"]
[White "Miszler, Levente"]
[Black "Bogumil, Tatiana"]
[WhiteFideId "763276"]
[BlackFideId "4110579"]
[WhiteElo "1966"]
[BlackElo "1862"]
[Result "1-0"]
[Round "09"]
[TimeControl "180+1"]
[Date "2022.03.01"]
[WhiteClock "0:01:30"]
[BlackClock "0:00:20"]

1. Nf3 {[%clk 0:03:00]}  Nf6 {[%clk 0:01:55]} 2. g3 {[%clk 0:02:54]}  b6 {[%clk 0:01:54]} 3. Bg2 {[%clk 0:02:54]}  Bb7 {[%clk 0:01:54]} 4. O-O {[%clk 0:02:55]}  c5 {[%clk 0:01:53]} 5. b3 {[%clk 0:02:55]}  g6 {[%clk 0:01:53]} 6. Bb2 {[%clk 0:02:56]}  Bg7 {[%clk 0:01:53]} 7. c4 {[%clk 0:02:51]}  O-O {[%clk 0:01:51]} 8. d4 {[%clk 0:02:47]}  d6 {[%clk 0:01:49]} 9. d5 {[%clk 0:02:46]}  b5 {[%clk 0:01:48]} 10. Nbd2 {[%clk 0:02:43]}  Nbd7 {[%clk 0:01:48]} 11. Qc2 {[%clk 0:02:38]}  a6 {[%clk 0:01:46]} 12. e4 {[%clk 0:02:37]}  bxc4 {[%clk 0:01:45]} 13. bxc4 {[%clk 0:02:37]}  Rb8 {[%clk 0:01:40]} 14. Rfe1 {[%clk 0:02:37]}  Ng4 {[%clk 0:01:40]} 15. Bxg7 {[%clk 0:02:33]}  Kxg7 {[%clk 0:01:40]} 16. h3 {[%clk 0:02:33]}  Nge5 {[%clk 0:01:40]} 17. Qc3 {[%clk 0:02:33]}  f6 {[%clk 0:01:38]} 18. Nxe5 {[%clk 0:02:33]}  fxe5 {[%clk 0:01:26]} 19. f4 {[%clk 0:02:32]}  Rf6 {[%clk 0:01:22]} 20. Rf1 {[%clk 0:02:31]}  Qc7 {[%clk 0:01:19]} 21. Nf3 {[%clk 0:02:31]}  exf4 {[%clk 0:01:18]} 22. gxf4 {[%clk 0:02:30]}  Kg8 {[%clk 0:01:03]} 23. Ng5 {[%clk 0:02:27]}  Qb6 {[%clk 0:00:58]} 24. e5 {[%clk 0:02:22]}  Rff8 {[%clk 0:00:50]} 25. Ne6 {[%clk 0:02:04]}  Rf7 {[%clk 0:00:48]} 26. exd6 {[%clk 0:01:58]}  exd6 {[%clk 0:00:46]} 27. f5 {[%clk 0:01:59]}  Ne5 {[%clk 0:00:39]} 28. fxg6 {[%clk 0:01:55]}  hxg6 {[%clk 0:00:39]} 29. Rxf7 {[%clk 0:01:53]}  Kxf7 {[%clk 0:00:36]} 30. Rf1+ {[%clk 0:01:53]}  Ke7 {[%clk 0:00:31]} 31. Qe3 {[%clk 0:01:48]}  Rg8 {[%clk 0:00:28]} 32. Qg5+ {[%clk 0:01:44]}  Kd7 {[%clk 0:00:27]} 33. Nf8+ {[%clk 0:01:37]}  Kc8 {[%clk 0:00:24]} 34. Qe7 {[%clk 0:01:31]}  Qc7 {[%clk 0:00:20]} 35. Qe6+ {[%clk 0:01:30]} 1-0


[Site "https://www.chess.com"]

[Event "Titled Tuesday Blitz March 01 Early 2022"]
[White "Mitusov, Semen"]
[Black "Shuvalov, Evgenij"]
[WhiteFideId "14151049"]
[BlackFideId "4187237"]
[WhiteElo "2246"]
[BlackElo "2119"]
[Result "1-0"]
[Round "09"]
[TimeControl "180+1"]
[Date "2022.03.01"]
[WhiteClock "0:00:21"]
[BlackClock "0:00:04"]

1. e4 {[%clk 0:03:00]}  e6 {[%clk 0:02:59]} 2. Nf3 {[%clk 0:03:00]}  d5 {[%clk 0:02:59]} 3. Nc3 {[%clk 0:03:00]}  Nf6 {[%clk 0:02:59]} 4. e5 {[%clk 0:03:00]}  Nfd7 {[%clk 0:02:59]} 5. d4 {[%clk 0:03:00]}  c5 {[%clk 0:03:00]} 6. dxc5 {[%clk 0:03:01]}  Nc6 {[%clk 0:02:59]} 7. Bf4 {[%clk 0:03:01]}  a6 {[%clk 0:02:52]} 8. a3 {[%clk 0:02:59]}  Bxc5 {[%clk 0:02:50]} 9. Bd3 {[%clk 0:02:59]}  Be7 {[%clk 0:02:40]} 10. Bg3 {[%clk 0:02:54]}  Nc5 {[%clk 0:02:39]} 11. Be2 {[%clk 0:02:53]}  b5 {[%clk 0:02:39]} 12. O-O {[%clk 0:02:49]}  Bb7 {[%clk 0:02:38]} 13. Nd4 {[%clk 0:02:47]}  Nxd4 {[%clk 0:02:36]} 14. Qxd4 {[%clk 0:02:47]}  O-O {[%clk 0:02:34]} 15. Rad1 {[%clk 0:02:39]}  Qc7 {[%clk 0:02:26]} 16. Bf3 {[%clk 0:02:30]}  Rfd8 {[%clk 0:02:25]} 17. Qg4 {[%clk 0:02:28]}  d4 {[%clk 0:02:15]} 18. Bxb7 {[%clk 0:02:21]}  Qxb7 {[%clk 0:02:16]} 19. Rxd4 {[%clk 0:02:18]}  Rxd4 {[%clk 0:02:12]} 20. Qxd4 {[%clk 0:02:19]}  Rd8 {[%clk 0:02:12]} 21. Qe3 {[%clk 0:02:15]}  h6 {[%clk 0:02:06]} 22. Rd1 {[%clk 0:02:10]}  Rxd1+ {[%clk 0:02:06]} 23. Nxd1 {[%clk 0:02:11]}  Qd5 {[%clk 0:02:06]} 24. Nc3 {[%clk 0:02:11]}  Qd7 {[%clk 0:01:56]} 25. h3 {[%clk 0:02:09]}  Na4 {[%clk 0:01:43]} 26. Nxa4 {[%clk 0:02:01]}  bxa4 {[%clk 0:01:43]} 27. Qe4 {[%clk 0:01:58]}  Qb5 {[%clk 0:01:39]} 28. Qd4 {[%clk 0:01:42]}  Bc5 {[%clk 0:01:35]} 29. Qc3 {[%clk 0:01:32]}  Qb6 {[%clk 0:01:26]} 30. Qc4 {[%clk 0:01:20]}  Bf8 {[%clk 0:01:15]} 31. Qxa4 {[%clk 0:01:14]}  Qxb2 {[%clk 0:01:14]} 32. Qxa6 {[%clk 0:01:14]}  Bxa3 {[%clk 0:01:11]} 33. c4 {[%clk 0:01:11]}  Kh7 {[%clk 0:01:03]} 34. Qa7 {[%clk 0:01:05]}  Kg6 {[%clk 0:00:57]} 35. Qe3 {[%clk 0:01:01]}  Qb1+ {[%clk 0:00:42]} 36. Kh2 {[%clk 0:00:59]}  Bc1 {[%clk 0:00:38]} 37. Qc3 {[%clk 0:00:57]}  Bb2 {[%clk 0:00:36]} 38. Qb3 {[%clk 0:00:56]}  Qc1 {[%clk 0:00:35]} 39. c5 {[%clk 0:00:54]}  Ba3 {[%clk 0:00:30]} 40. c6 {[%clk 0:00:52]}  Kh7 {[%clk 0:00:24]} 41. c7 {[%clk 0:00:49]}  Qxc7 {[%clk 0:00:19]} 42. Qxa3 {[%clk 0:00:49]}  Qc6 {[%clk 0:00:19]} 43. Qd3+ {[%clk 0:00:49]}  Kg8 {[%clk 0:00:19]} 44. Qd6 {[%clk 0:00:48]}  Qb7 {[%clk 0:00:17]} 45. Qd8+ {[%clk 0:00:47]}  Kh7 {[%clk 0:00:16]} 46. Qf8 {[%clk 0:00:48]}  Kg6 {[%clk 0:00:16]} 47. Qc5 {[%clk 0:00:44]}  Qe4 {[%clk 0:00:15]} 48. Qc3 {[%clk 0:00:42]}  Kh7 {[%clk 0:00:14]} 49. Qf3 {[%clk 0:00:38]}  Qg6 {[%clk 0:00:14]} 50. h4 {[%clk 0:00:36]}  h5 {[%clk 0:00:14]} 51. Qe2 {[%clk 0:00:35]}  Qf5 {[%clk 0:00:14]} 52. f3 {[%clk 0:00:34]}  Kg8 {[%clk 0:00:13]} 53. Qe4 {[%clk 0:00:34]}  Qxe4 {[%clk 0:00:12]} 54. fxe4 {[%clk 0:00:35]}  Kf8 {[%clk 0:00:11]} 55. Kg1 {[%clk 0:00:35]}  Ke7 {[%clk 0:00:12]} 56. Kf2 {[%clk 0:00:36]}  Kd7 {[%clk 0:00:12]} 57. Ke3 {[%clk 0:00:36]}  Kc6 {[%clk 0:00:12]} 58. Kd4 {[%clk 0:00:37]}  Kb5 {[%clk 0:00:13]} 59. Bf4 {[%clk 0:00:37]}  Kb4 {[%clk 0:00:13]} 60. g3 {[%clk 0:00:34]}  Kb5 {[%clk 0:00:13]} 61. Kc3 {[%clk 0:00:33]}  Kc5 {[%clk 0:00:13]} 62. Be3+ {[%clk 0:00:33]}  Kb5 {[%clk 0:00:13]} 63. Bd4 {[%clk 0:00:34]}  Kc6 {[%clk 0:00:12]} 64. Kc4 {[%clk 0:00:34]}  Kd7 {[%clk 0:00:12]} 65. Kc5 {[%clk 0:00:35]}  Kc7 {[%clk 0:00:12]} 66. Be3 {[%clk 0:00:33]}  Kd7 {[%clk 0:00:13]} 67. Bg5 {[%clk 0:00:33]}  Kc7 {[%clk 0:00:11]} 68. Be7 {[%clk 0:00:34]}  Kd7 {[%clk 0:00:11]} 69. Bf8 {[%clk 0:00:35]}  g6 {[%clk 0:00:11]} 70. Bd6 {[%clk 0:00:34]}  Kc8 {[%clk 0:00:10]} 71. Kc6 {[%clk 0:00:34]}  Kd8 {[%clk 0:00:10]} 72. Bc5 {[%clk 0:00:34]}  Ke8 {[%clk 0:00:09]} 73. Kd6 {[%clk 0:00:34]}  Kf8 {[%clk 0:00:09]} 74. Kd7+ {[%clk 0:00:34]}  Kg7 {[%clk 0:00:09]} 75. Be7 {[%clk 0:00:35]}  Kg8 {[%clk 0:00:08]} 76. Ke8 {[%clk 0:00:35]}  Kg7 {[%clk 0:00:08]} 77. Bf6+ {[%clk 0:00:35]}  Kg8 {[%clk 0:00:09]} 78. Ke7 {[%clk 0:00:36]}  g5 {[%clk 0:00:07]} 79. hxg5 {[%clk 0:00:34]}  h4 {[%clk 0:00:05]} 80. gxh4 {[%clk 0:00:34]}  Kh7 {[%clk 0:00:06]} 81. h5 {[%clk 0:00:32]}  Kg8 {[%clk 0:00:06]} 82. Ke8 {[%clk 0:00:31]}  Kh7 {[%clk 0:00:05]} 83. Bd8 {[%clk 0:00:19]}  Kg8 {[%clk 0:00:05]} 84. h6 {[%clk 0:00:18]}  Kh7 {[%clk 0:00:04]} 85. Kxf7 {[%clk 0:00:18]}  Kh8 {[%clk 0:00:03]} 86. Bf6+ {[%clk 0:00:17]}  Kh7 {[%clk 0:00:04]} 87. g6+ {[%clk 0:00:18]}  Kxh6 {[%clk 0:00:04]} 88. g7 {[%clk 0:00:19]}  Kh5 {[%clk 0:00:03]} 89. g8=Q {[%clk 0:00:20]}  Kh6 {[%clk 0:00:04]} 90. Qg6# {[%clk 0:00:21]} 1-0


[Site "https://www.chess.com"]

[Event "Titled Tuesday Blitz March 01 Early 2022"]
[White "Muhammed, Shuaau"]
[Black "Buscar, Michael"]
[WhiteFideId "16700406"]
[BlackFideId "2603616"]
[WhiteElo "1674"]
[BlackElo "2010"]
[Result "1-0"]
[Round "09"]
[TimeControl "180+1"]
[Date "2022.03.01"]
[WhiteClock "0:02:07"]
[BlackClock "0:01:37"]

1. e4 {[%clk 0:03:00]}  c5 {[%clk 0:02:42]} 2. Nf3 {[%clk 0:02:55]}  e6 {[%clk 0:02:42]} 3. c3 {[%clk 0:02:55]}  a6 {[%clk 0:02:38]} 4. d4 {[%clk 0:02:55]}  cxd4 {[%clk 0:02:38]} 5. cxd4 {[%clk 0:02:56]}  d6 {[%clk 0:02:38]} 6. Nc3 {[%clk 0:02:56]}  Be7 {[%clk 0:02:36]} 7. Bd3 {[%clk 0:02:55]}  Nf6 {[%clk 0:02:35]} 8. h4 {[%clk 0:02:54]}  Nbd7 {[%clk 0:02:32]} 9. Bg5 {[%clk 0:02:49]}  b5 {[%clk 0:02:29]} 10. a3 {[%clk 0:02:48]}  Bb7 {[%clk 0:02:29]} 11. Qe2 {[%clk 0:02:45]}  Rc8 {[%clk 0:02:27]} 12. Rh3 {[%clk 0:02:40]}  Qa5 {[%clk 0:02:21]} 13. Kf1 {[%clk 0:02:38]}  Rxc3 {[%clk 0:02:18]} 14. bxc3 {[%clk 0:02:37]}  Qxc3 {[%clk 0:02:19]} 15. Rc1 {[%clk 0:02:25]}  Qxa3 {[%clk 0:02:18]} 16. Rc7 {[%clk 0:02:25]}  Qa1+ {[%clk 0:02:06]} 17. Ne1 {[%clk 0:02:22]}  Bxe4 {[%clk 0:01:43]} 18. Bxe4 {[%clk 0:02:16]}  Qxd4 {[%clk 0:01:43]} 19. Bxf6 {[%clk 0:02:08]}  gxf6 {[%clk 0:01:37]} 20. Bc6 {[%clk 0:02:07]} 1-0


[Site "https://www.chess.com"]

[Event "Titled Tuesday Blitz March 01 Early 2022"]
[White "Niyazgulova, Marina"]
[Black "Potapova, Margarita"]
[WhiteFideId "24142573"]
[BlackFideId "14126869"]
[WhiteElo "2075"]
[BlackElo "2209"]
[Result "0-1"]
[Round "09"]
[TimeControl "180+1"]
[Date "2022.03.01"]
[WhiteClock "0:00:15"]
[BlackClock "0:00:26"]

1. d4 {[%clk 0:03:00]}  Nf6 {[%clk 0:02:59]} 2. c4 {[%clk 0:02:59]}  e6 {[%clk 0:03:00]} 3. Nc3 {[%clk 0:02:55]}  Bb4 {[%clk 0:02:59]} 4. Qc2 {[%clk 0:02:54]}  O-O {[%clk 0:02:59]} 5. e4 {[%clk 0:02:51]}  d5 {[%clk 0:02:59]} 6. e5 {[%clk 0:02:49]}  Ne4 {[%clk 0:02:59]} 7. Bd3 {[%clk 0:02:49]}  c5 {[%clk 0:02:59]} 8. Ne2 {[%clk 0:02:48]}  cxd4 {[%clk 0:02:59]} 9. Nxd4 {[%clk 0:02:48]}  Nd7 {[%clk 0:03:00]} 10. Bf4 {[%clk 0:02:41]}  Ndc5 {[%clk 0:03:00]} 11. O-O {[%clk 0:02:25]}  Bxc3 {[%clk 0:02:59]} 12. bxc3 {[%clk 0:02:26]}  Nxd3 {[%clk 0:02:59]} 13. Qxd3 {[%clk 0:02:26]}  b6 {[%clk 0:03:00]} 14. cxd5 {[%clk 0:02:18]}  Qxd5 {[%clk 0:03:01]} 15. c4 {[%clk 0:01:57]}  Nc5 {[%clk 0:03:01]} 16. Qc3 {[%clk 0:01:45]}  Qe4 {[%clk 0:02:59]} 17. Bg3 {[%clk 0:01:40]}  Bb7 {[%clk 0:02:24]} 18. f3 {[%clk 0:01:31]}  Na4 {[%clk 0:02:21]} 19. Qd2 {[%clk 0:01:27]}  Qg6 {[%clk 0:02:18]} 20. Nb5 {[%clk 0:01:27]}  Ba6 {[%clk 0:01:53]} 21. Nd6 {[%clk 0:01:25]}  h5 {[%clk 0:01:47]} 22. Bh4 {[%clk 0:01:18]}  Nc5 {[%clk 0:01:45]} 23. Rfd1 {[%clk 0:01:00]}  Bb7 {[%clk 0:01:24]} 24. Rf1 {[%clk 0:00:41]}  Bc6 {[%clk 0:01:24]} 25. Rad1 {[%clk 0:00:36]}  Ba4 {[%clk 0:01:23]} 26. Rde1 {[%clk 0:00:31]}  Bc6 {[%clk 0:01:21]} 27. Be7 {[%clk 0:00:29]}  Rfb8 {[%clk 0:01:21]} 28. Rd1 {[%clk 0:00:25]}  Ba4 {[%clk 0:01:13]} 29. Rde1 {[%clk 0:00:25]}  Bc6 {[%clk 0:01:12]} 30. Rd1 {[%clk 0:00:24]}  Nd7 {[%clk 0:00:53]} 31. Qf4 {[%clk 0:00:22]}  Nc5 {[%clk 0:00:40]} 32. Rd4 {[%clk 0:00:20]}  Nd3 {[%clk 0:00:34]} 33. Qe3 {[%clk 0:00:19]}  Nc5 {[%clk 0:00:31]} 34. Rf4 {[%clk 0:00:19]}  Be8 {[%clk 0:00:29]} 35. Nxe8 {[%clk 0:00:15]}  Rxe8 {[%clk 0:00:30]} 36. Bxc5 {[%clk 0:00:16]}  bxc5 {[%clk 0:00:30]} 37. Qxc5 {[%clk 0:00:17]}  Rac8 {[%clk 0:00:30]} 38. Qxa7 {[%clk 0:00:16]}  Ra8 {[%clk 0:00:27]} 39. Qf2 {[%clk 0:00:16]}  Qg5 {[%clk 0:00:26]} 40. Re1 {[%clk 0:00:15]}  Qxf4 {[%clk 0:00:26]} 0-1


[Site "https://www.chess.com"]

[Event "Titled Tuesday Blitz March 01 Early 2022"]
[White "Ooi, Zhi Yang"]
[Black "Nur-Mukhametova, Alisa"]
[WhiteFideId "5709270"]
[BlackFideId "54117739"]
[WhiteElo "1802"]
[BlackElo "2015"]
[Result "0-1"]
[Round "09"]
[TimeControl "180+1"]
[Date "2022.03.01"]
[WhiteClock "0:00:09"]
[BlackClock "0:00:16"]

1. d4 {[%clk 0:03:00]}  Nf6 {[%clk 0:02:59]} 2. Nc3 {[%clk 0:03:00]}  d5 {[%clk 0:02:59]} 3. Bg5 {[%clk 0:02:59]}  c5 {[%clk 0:02:54]} 4. Bxf6 {[%clk 0:02:58]}  gxf6 {[%clk 0:02:48]} 5. e3 {[%clk 0:02:58]}  Nc6 {[%clk 0:02:47]} 6. Qh5 {[%clk 0:02:58]}  e6 {[%clk 0:02:35]} 7. Nf3 {[%clk 0:02:55]}  a6 {[%clk 0:02:24]} 8. Bd3 {[%clk 0:02:51]}  f5 {[%clk 0:02:09]} 9. g4 {[%clk 0:02:29]}  fxg4 {[%clk 0:01:53]} 10. Ng5 {[%clk 0:02:13]}  Qf6 {[%clk 0:01:41]} 11. Nxh7 {[%clk 0:02:10]}  Qh6 {[%clk 0:01:26]} 12. Qxh6 {[%clk 0:02:02]}  Bxh6 {[%clk 0:01:27]} 13. Nf6+ {[%clk 0:02:01]}  Ke7 {[%clk 0:01:25]} 14. Nxg4 {[%clk 0:01:58]}  cxd4 {[%clk 0:01:17]} 15. exd4 {[%clk 0:01:56]}  Nxd4 {[%clk 0:01:18]} 16. Nxh6 {[%clk 0:01:52]}  Rxh6 {[%clk 0:01:18]} 17. O-O-O {[%clk 0:01:53]}  Nf3 {[%clk 0:01:12]} 18. h3 {[%clk 0:01:43]}  Bd7 {[%clk 0:01:11]} 19. Be2 {[%clk 0:01:38]}  Ng5 {[%clk 0:01:04]} 20. h4 {[%clk 0:01:34]}  Nh7 {[%clk 0:01:04]} 21. f4 {[%clk 0:01:34]}  Bc6 {[%clk 0:01:00]} 22. Bf3 {[%clk 0:01:28]}  Nf6 {[%clk 0:00:53]} 23. f5 {[%clk 0:01:20]}  Rah8 {[%clk 0:00:53]} 24. fxe6 {[%clk 0:01:18]}  fxe6 {[%clk 0:00:54]} 25. Ne2 {[%clk 0:00:51]}  Rxh4 {[%clk 0:00:51]} 26. Rhg1 {[%clk 0:00:51]}  Rg8 {[%clk 0:00:48]} 27. Rxg8 {[%clk 0:00:47]}  Nxg8 {[%clk 0:00:49]} 28. Nd4 {[%clk 0:00:48]}  Nf6 {[%clk 0:00:41]} 29. c4 {[%clk 0:00:46]}  Rf4 {[%clk 0:00:29]} 30. cxd5 {[%clk 0:00:36]}  Bxd5 {[%clk 0:00:27]} 31. Bxd5 {[%clk 0:00:32]}  Nxd5 {[%clk 0:00:27]} 32. Nb3 {[%clk 0:00:30]}  Kd6 {[%clk 0:00:26]} 33. Re1 {[%clk 0:00:25]}  e5 {[%clk 0:00:25]} 34. Nd2 {[%clk 0:00:24]}  Nf6 {[%clk 0:00:20]} 35. b3 {[%clk 0:00:22]}  e4 {[%clk 0:00:18]} 36. Nc4+ {[%clk 0:00:21]}  Ke6 {[%clk 0:00:18]} 37. Kc2 {[%clk 0:00:20]}  b5 {[%clk 0:00:19]} 38. Ne3 {[%clk 0:00:19]}  Rf2+ {[%clk 0:00:18]} 39. Kc3 {[%clk 0:00:20]}  Ke5 {[%clk 0:00:16]} 40. Nc2 {[%clk 0:00:16]}  Nd5+ {[%clk 0:00:15]} 41. Kb2 {[%clk 0:00:12]}  Nb4 {[%clk 0:00:16]} 42. Rc1 {[%clk 0:00:09]}  Nd3+ {[%clk 0:00:16]} 0-1


[Site "https://www.chess.com"]